[Event "Rapid della Domenica"]
[Site "Chess.com"]
[Date "2020.04.19"]
[Round "4"]
[White "crippo"]
[Black "Ollarov"]
[Result "0-1"]
[WhiteElo "1603"]
[BlackElo "2040"]
[TimeControl "720+3"]
[EndTime "7:37:11 PDT"]
[Termination "Ollarov ha vinto per scaccomatto"]

1. e4 {[%clk 0:12:02.9]} 1... c5 {[%clk 0:11:59.4]} 2. Nc3 {[%clk 0:12:03.9]}
2... e6 {[%clk 0:11:58.7]} 3. Nf3 {[%clk 0:12:03.9]} 3... Nc6 {[%clk 0:12:00.4]}
4. Bb5 {[%clk 0:12:04.7]} 4... Nd4 {[%clk 0:12:01.4]} 5. Nxd4 {[%clk 0:12:05]}
5... cxd4 {[%clk 0:12:03.3]} 6. Ne2 {[%clk 0:12:06.6]} 6... Qg5 {[%clk 0:11:26]}
7. O-O {[%clk 0:12:06.2]} 7... Qxb5 {[%clk 0:10:57.7]} 8. Nxd4 {[%clk
0:12:05.6]} 8... Qe5 {[%clk 0:10:38.1]} 9. Nf3 {[%clk 0:11:45]} 9... Qxe4 {[%clk
0:10:36.8]} 10. d3 {[%clk 0:11:45.5]} 10... Qc6 {[%clk 0:10:33.8]} 11. Ne5
{[%clk 0:11:41.5]} 11... Qd5 {[%clk 0:10:32.7]} 12. d4 {[%clk 0:11:40.9]} 12...
d6 {[%clk 0:10:32.9]} 13. c4 {[%clk 0:11:40.8]} 13... Qe4 {[%clk 0:10:30.9]} 14.
Nf3 {[%clk 0:11:40.1]} 14... Nf6 {[%clk 0:10:30.4]} 15. Re1 {[%clk 0:11:41]}
15... Qg6 {[%clk 0:10:31.6]} 16. d5 {[%clk 0:11:37.3]} 16... Be7 {[%clk
0:10:14.1]} 17. dxe6 {[%clk 0:11:30]} 17... fxe6 {[%clk 0:10:14.7]} 18. Nd4
{[%clk 0:11:30.1]} 18... e5 {[%clk 0:10:14.3]} 19. Nb5 {[%clk 0:11:26]} 19...
O-O {[%clk 0:10:03.9]} 20. Nc7 {[%clk 0:11:23.7]} 20... Rb8 {[%clk 0:10:02.9]}
21. Be3 {[%clk 0:11:21.4]} 21... b6 {[%clk 0:10:01.7]} 22. Nb5 {[%clk
0:11:20.9]} 22... a6 {[%clk 0:09:41.9]} 23. Nxd6 {[%clk 0:10:56.6]} 23... Rd8
{[%clk 0:09:40.7]} 24. c5 {[%clk 0:10:48.8]} 24... Be6 {[%clk 0:09:36.5]} 25. b4
{[%clk 0:10:47.3]} 25... bxc5 {[%clk 0:09:36.6]} 26. bxc5 {[%clk 0:10:49]} 26...
Bd5 {[%clk 0:09:33.1]} 27. g3 {[%clk 0:10:26.2]} 27... Bxd6 {[%clk 0:09:30.5]}
28. cxd6 {[%clk 0:10:26.5]} 28... Rxd6 {[%clk 0:09:32.5]} 29. Qa4 {[%clk
0:10:14.6]} 29... Rbd8 {[%clk 0:09:28.4]} 30. Bc5 {[%clk 0:09:59.6]} 30... R6d7
{[%clk 0:09:27.3]} 31. Bb6 {[%clk 0:09:54]} 31... Rc8 {[%clk 0:09:02]} 32. Rxe5
{[%clk 0:09:31.8]} 32... Bc4 {[%clk 0:08:58.6]} 33. Rae1 {[%clk 0:09:14.6]}
33... Bb5 {[%clk 0:08:58.1]} 34. Qb3+ {[%clk 0:09:13.1]} 34... Qf7 {[%clk
0:08:57.7]} 35. Qb1 {[%clk 0:08:51.3]} 35... Bd3 {[%clk 0:07:20.8]} 36. Qb2
{[%clk 0:08:02.5]} 36... h6 {[%clk 0:07:15.9]} 37. Bd4 {[%clk 0:07:51.4]} 37...
Ng4 {[%clk 0:06:57.6]} 38. Re6 {[%clk 0:06:48.6]} 38... Rc2 {[%clk 0:06:48.3]}
39. Qb8+ {[%clk 0:06:37.1]} 39... Kh7 {[%clk 0:06:44.7]} 40. Qb6 {[%clk
0:06:30]} 40... Rxd4 {[%clk 0:04:49.9]} 41. Qxd4 {[%clk 0:06:28.1]} 41... Nxf2
{[%clk 0:04:49.4]} 42. Re7 {[%clk 0:04:41.4]} 42... Nh3+ {[%clk 0:04:39.7]} 43.
Kh1 {[%clk 0:04:41.6]} 43... Qf3# {[%clk 0:04:39.9]} 0-1

[Event "Rapid della Domenica"]
[Site "Chess.com"]
[Date "2020.04.19"]
[Round "4"]
[White "ferrariand"]
[Black "caramante"]
[Result "0-1"]
[WhiteElo "1564"]
[BlackElo "1576"]
[TimeControl "720+3"]
[EndTime "7:38:15 PDT"]
[Termination "caramante ha vinto per abbandono"]

1. e4 {[%clk 0:12:02.9]} 1... c5 {[%clk 0:12:00.8]} 2. Nf3 {[%clk 0:11:59.3]}
2... d6 {[%clk 0:12:02.1]} 3. d4 {[%clk 0:12:00]} 3... cxd4 {[%clk 0:12:03.7]}
4. Nxd4 {[%clk 0:12:01.5]} 4... Nf6 {[%clk 0:12:05.7]} 5. Nc3 {[%clk 0:12:02.7]}
5... a6 {[%clk 0:12:07.7]} 6. Be2 {[%clk 0:12:02.3]} 6... e6 {[%clk 0:12:09.6]}
7. O-O {[%clk 0:11:59.4]} 7... Be7 {[%clk 0:12:11.5]} 8. Be3 {[%clk 0:11:54.6]}
8... Qc7 {[%clk 0:12:13.3]} 9. a4 {[%clk 0:11:45.2]} 9... O-O {[%clk 0:12:14.9]}
10. Bf3 {[%clk 0:11:33.4]} 10... Nc6 {[%clk 0:12:14.5]} 11. Qd2 {[%clk
0:11:29.4]} 11... Ne5 {[%clk 0:12:13.9]} 12. Be2 {[%clk 0:11:14.5]} 12... Bd7
{[%clk 0:12:13.3]} 13. f4 {[%clk 0:11:10.7]} 13... Neg4 {[%clk 0:12:13.3]} 14.
Bxg4 {[%clk 0:10:50.5]} 14... Nxg4 {[%clk 0:12:12.8]} 15. Nb3 {[%clk 0:10:12.9]}
15... Nxe3 {[%clk 0:12:12.5]} 16. Qxe3 {[%clk 0:10:13.6]} 16... Rac8 {[%clk
0:12:13]} 17. Rfd1 {[%clk 0:10:09.1]} 17... Rfd8 {[%clk 0:12:03]} 18. Kh1 {[%clk
0:10:09.7]} 18... Bc6 {[%clk 0:12:00.2]} 19. a5 {[%clk 0:09:56.7]} 19... h6
{[%clk 0:11:48.5]} 20. Nd4 {[%clk 0:09:15.1]} 20... Bf6 {[%clk 0:10:59.9]} 21.
Nxc6 {[%clk 0:08:49.2]} 21... Qxc6 {[%clk 0:10:54.3]} 22. Rd3 {[%clk 0:07:45.8]}
22... Rb8 {[%clk 0:08:44]} 23. Qe2 {[%clk 0:06:00.9]} 23... b5 {[%clk 0:08:28]}
24. Rad1 {[%clk 0:05:28.3]} 24... Be7 {[%clk 0:08:22.7]} 25. Rg3 {[%clk
0:05:05.6]} 25... Rbc8 {[%clk 0:08:15.3]} 26. Qg4 {[%clk 0:05:03.9]} 26... Bf8
{[%clk 0:08:13.2]} 27. Qh5 {[%clk 0:04:41]} 27... Kh8 {[%clk 0:07:55.1]} 28.
Qxf7 {[%clk 0:04:29.7]} 28... b4 {[%clk 0:07:56.4]} 29. f5 {[%clk 0:02:19.5]}
29... bxc3 {[%clk 0:07:50.7]} 30. f6 {[%clk 0:02:19.9]} 30... Rc7 {[%clk
0:07:23.8]} 31. fxg7+ {[%clk 0:01:01.8]} 31... Bxg7 {[%clk 0:07:22.6]} 32. Qxe6
{[%clk 0:00:53]} 32... Re8 {[%clk 0:07:21.4]} 33. Qg6 {[%clk 0:00:44.8]} 33...
Qxe4 {[%clk 0:07:16.5]} 34. Qxd6 {[%clk 0:00:22.5]} 34... Qe1+ {[%clk
0:06:58.2]} 0-1

[Event "Rapid della Domenica"]
[Site "Chess.com"]
[Date "2020.04.19"]
[Round "4"]
[White "Piccolorso"]
[Black "sirmale49"]
[Result "0-1"]
[WhiteElo "1261"]
[BlackElo "1379"]
[TimeControl "720+3"]
[EndTime "7:38:39 PDT"]
[Termination "sirmale49 ha vinto per abbandono"]

1. e4 {[%clk 0:12:02.9]} 1... d5 {[%clk 0:11:59.2]} 2. exd5 {[%clk 0:12:02.2]}
2... Qxd5 {[%clk 0:12:00.3]} 3. Nc3 {[%clk 0:12:00.4]} 3... Qd6 {[%clk
0:12:01.5]} 4. d4 {[%clk 0:11:55.2]} 4... c6 {[%clk 0:12:03.2]} 5. Nf3 {[%clk
0:11:53.6]} 5... Bg4 {[%clk 0:12:04.5]} 6. Bc4 {[%clk 0:10:27.8]} 6... Nf6
{[%clk 0:11:52.2]} 7. Be3 {[%clk 0:09:28]} 7... e6 {[%clk 0:11:50]} 8. Be2
{[%clk 0:08:28.4]} 8... Nbd7 {[%clk 0:11:46.5]} 9. Qd2 {[%clk 0:08:14.8]} 9...
Nd5 {[%clk 0:11:29.4]} 10. h3 {[%clk 0:07:39.8]} 10... Bh5 {[%clk 0:11:11.4]}
11. g4 {[%clk 0:07:41]} 11... Bg6 {[%clk 0:11:09.7]} 12. Nh4 {[%clk 0:07:42.7]}
12... Nxc3 {[%clk 0:10:56.4]} 13. Qxc3 {[%clk 0:07:37.8]} 13... Be4 {[%clk
0:10:40.3]} 14. f3 {[%clk 0:07:38.2]} 14... Bd5 {[%clk 0:10:27.9]} 15. Bc4
{[%clk 0:07:06.4]} 15... Be7 {[%clk 0:10:15]} 16. O-O-O {[%clk 0:07:07.7]} 16...
Bxh4 {[%clk 0:10:14.5]} 17. Rhf1 {[%clk 0:06:39.1]} 17... Nb6 {[%clk 0:10:10.3]}
18. Bxd5 {[%clk 0:06:38.3]} 18... Nxd5 {[%clk 0:10:09.8]} 19. Qb3 {[%clk
0:06:35.2]} 19... O-O {[%clk 0:09:46.4]} 20. f4 {[%clk 0:06:33.7]} 20... Nxe3
{[%clk 0:09:38.9]} 21. Qxe3 {[%clk 0:06:33.9]} 21... Qd5 {[%clk 0:08:58.7]} 22.
Kb1 {[%clk 0:06:28.9]} 22... Be7 {[%clk 0:08:58.5]} 23. f5 {[%clk 0:06:22.6]}
23... Qd6 {[%clk 0:08:36.8]} 24. fxe6 {[%clk 0:06:12.8]} 24... fxe6 {[%clk
0:08:24]} 25. Rfe1 {[%clk 0:06:02]} 25... Rf6 {[%clk 0:08:09.9]} 26. c3 {[%clk
0:05:24.4]} 26... Re8 {[%clk 0:08:06.5]} 27. Qd2 {[%clk 0:05:23.2]} 27... Bd8
{[%clk 0:07:49.7]} 28. Qg2 {[%clk 0:04:42.8]} 28... Ref8 {[%clk 0:07:40.6]} 29.
h4 {[%clk 0:04:30.9]} 29... Rf2 {[%clk 0:07:41.5]} 30. Qg1 {[%clk 0:04:23.2]}
30... Bxh4 {[%clk 0:07:31.8]} 31. g5 {[%clk 0:04:23.5]} 31... Qf4 {[%clk
0:06:54.6]} 32. g6 {[%clk 0:03:57]} 32... Qf5+ {[%clk 0:06:46]} 33. Ka1 {[%clk
0:03:51.5]} 33... hxg6 {[%clk 0:06:45.8]} 34. Qh1 {[%clk 0:03:41.1]} 34... g5
{[%clk 0:06:42.6]} 35. a3 {[%clk 0:03:34.5]} 35... Qb5 {[%clk 0:06:22.2]} 36.
Rb1 {[%clk 0:03:27.2]} 36... c5 {[%clk 0:05:00.8]} 37. dxc5 {[%clk 0:03:13.6]}
37... Qxc5 {[%clk 0:04:56.4]} 38. Qxb7 {[%clk 0:03:15]} 38... R2f7 {[%clk
0:04:55.2]} 39. Qe4 {[%clk 0:03:04.6]} 39... Bxe1 {[%clk 0:04:53.3]} 40. Rxe1
{[%clk 0:03:00.1]} 0-1

[Event "Rapid della Domenica"]
[Site "Chess.com"]
[Date "2020.04.19"]
[Round "4"]
[White "fausto2p"]
[Black "SanSecondoPR"]
[Result "0-1"]
[WhiteElo "859"]
[BlackElo "1183"]
[TimeControl "720+3"]
[EndTime "7:38:55 PDT"]
[Termination "SanSecondoPR ha vinto per tempo"]

1. d4 {[%clk 0:12:02.9]} 1... d5 {[%clk 0:12:00.9]} 2. c4 {[%clk 0:12:03.1]}
2... e5 {[%clk 0:12:01.2]} 3. dxe5 {[%clk 0:12:01.3]} 3... d4 {[%clk 0:12:02.3]}
4. Nf3 {[%clk 0:12:01.2]} 4... Nc6 {[%clk 0:12:03.4]} 5. a3 {[%clk 0:12:01.8]}
5... Bg4 {[%clk 0:12:01.3]} 6. Nbd2 {[%clk 0:11:42.5]} 6... Nge7 {[%clk
0:11:59.1]} 7. h3 {[%clk 0:11:42.9]} 7... Bh5 {[%clk 0:11:55.5]} 8. b4 {[%clk
0:11:34.7]} 8... a6 {[%clk 0:11:45.2]} 9. Bb2 {[%clk 0:11:35.4]} 9... g5 {[%clk
0:11:07]} 10. Nb3 {[%clk 0:11:21]} 10... Bxf3 {[%clk 0:11:04.2]} 11. exf3 {[%clk
0:11:09.4]} 11... Bg7 {[%clk 0:11:02.7]} 12. Nxd4 {[%clk 0:10:03.9]} 12... Nxe5
{[%clk 0:10:44.8]} 13. Rb1 {[%clk 0:09:37.3]} 13... O-O {[%clk 0:10:41]} 14. Be2
{[%clk 0:09:29.5]} 14... Qc8 {[%clk 0:10:29.4]} 15. O-O {[%clk 0:09:27.4]} 15...
c5 {[%clk 0:10:10.3]} 16. bxc5 {[%clk 0:08:17.9]} 16... Qxc5 {[%clk 0:10:07.3]}
17. Nb3 {[%clk 0:08:18.2]} 17... Qc7 {[%clk 0:09:44.4]} 18. Qc2 {[%clk
0:08:11.1]} 18... Qc6 {[%clk 0:09:03.7]} 19. Rfd1 {[%clk 0:07:28.6]} 19... Qh6
{[%clk 0:09:01.9]} 20. Qe4 {[%clk 0:06:58.5]} 20... N7g6 {[%clk 0:08:52]} 21.
Rd6 {[%clk 0:06:08.1]} 21... Rae8 {[%clk 0:08:30.5]} 22. Qd5 {[%clk 0:04:18.1]}
22... Qh4 {[%clk 0:07:24.7]} 23. Rd7 {[%clk 0:02:00.9]} 23... Nf4 {[%clk
0:07:10.7]} 24. Qd2 {[%clk 0:01:04.6]} 24... Nxd7 {[%clk 0:07:05]} 25. Qxd7
{[%clk 0:01:00.7]} 25... Nxe2+ {[%clk 0:07:00.2]} 26. Kf1 {[%clk 0:00:46.2]}
26... Bxb2 {[%clk 0:06:45.8]} 27. Rxb2 {[%clk 0:00:46.5]} 27... Qf4 {[%clk
0:06:22.5]} 28. Rxe2 {[%clk 0:00:20.6]} 28... Rxe2 {[%clk 0:06:18]} 29. Kxe2
{[%clk 0:00:18.8]} 29... Qe5+ {[%clk 0:06:15.7]} 30. Kf1 {[%clk 0:00:12.1]}
30... Qb2 {[%clk 0:06:13.3]} 0-1

[Event "Rapid della Domenica"]
[Site "Chess.com"]
[Date "2020.04.19"]
[Round "4"]
[White "pedrak"]
[Black "BAKR1980"]
[Result "1-0"]
[WhiteElo "1627"]
[BlackElo "1506"]
[TimeControl "720+3"]
[EndTime "7:43:02 PDT"]
[Termination "pedrak ha vinto per scaccomatto"]

1. d4 {[%clk 0:12:02.9]} 1... d5 {[%clk 0:12:00.8]} 2. Nf3 {[%clk 0:12:03.9]}
2... Nf6 {[%clk 0:12:02.1]} 3. Bf4 {[%clk 0:12:03.4]} 3... e6 {[%clk 0:11:54.3]}
4. e3 {[%clk 0:12:04.2]} 4... g6 {[%clk 0:11:35.9]} 5. h3 {[%clk 0:11:59.6]}
5... Bg7 {[%clk 0:11:36.4]} 6. Be2 {[%clk 0:12:00.3]} 6... c5 {[%clk 0:11:37.1]}
7. c3 {[%clk 0:12:01.1]} 7... c4 {[%clk 0:11:28.7]} 8. O-O {[%clk 0:12:00.6]}
8... a5 {[%clk 0:11:27.5]} 9. Nbd2 {[%clk 0:11:42.1]} 9... O-O {[%clk 0:11:28]}
10. Qc2 {[%clk 0:11:42]} 10... Nc6 {[%clk 0:10:55.4]} 11. Rfe1 {[%clk
0:11:37.3]} 11... b5 {[%clk 0:10:52.3]} 12. Ne5 {[%clk 0:11:36.6]} 12... Qb6
{[%clk 0:10:25.5]} 13. Nxc6 {[%clk 0:11:33.7]} 13... Qxc6 {[%clk 0:10:23.2]} 14.
Be5 {[%clk 0:11:34.7]} 14... b4 {[%clk 0:10:15.8]} 15. Bf3 {[%clk 0:11:34.9]}
15... Nd7 {[%clk 0:08:44.4]} 16. Bxg7 {[%clk 0:11:33.5]} 16... Kxg7 {[%clk
0:08:45.8]} 17. e4 {[%clk 0:11:26.4]} 17... Nf6 {[%clk 0:08:07.9]} 18. Rab1
{[%clk 0:10:42.8]} 18... Rb8 {[%clk 0:07:42.4]} 19. e5 {[%clk 0:10:07.3]} 19...
Ng8 {[%clk 0:07:35]} 20. Nf1 {[%clk 0:10:06.1]} 20... Ne7 {[%clk 0:07:34.5]} 21.
Qd2 {[%clk 0:10:05.1]} 21... Qa4 {[%clk 0:06:50.7]} 22. Ra1 {[%clk 0:09:35]}
22... Qb5 {[%clk 0:05:22.6]} 23. Re2 {[%clk 0:08:58.2]} 23... Nf5 {[%clk
0:04:56.2]} 24. g3 {[%clk 0:08:21.7]} 24... Bd7 {[%clk 0:04:39.4]} 25. Nh2
{[%clk 0:08:20.7]} 25... h5 {[%clk 0:04:38.1]} 26. Qg5 {[%clk 0:08:14]} 26...
bxc3 {[%clk 0:04:10.1]} 27. bxc3 {[%clk 0:08:13]} 27... Kh7 {[%clk 0:03:28]} 28.
Kg2 {[%clk 0:06:40.7]} 28... Qb6 {[%clk 0:02:56.3]} 29. g4 {[%clk 0:06:30.7]}
29... hxg4 {[%clk 0:02:53.7]} 30. hxg4 {[%clk 0:06:31.7]} 30... Ng7 {[%clk
0:02:42.3]} 31. Rh1 {[%clk 0:06:28.3]} 31... Kg8 {[%clk 0:02:20.9]} 32. Nf1
{[%clk 0:06:24.4]} 32... Be8 {[%clk 0:02:07.9]} 33. Qh4 {[%clk 0:05:17.5]} 33...
f5 {[%clk 0:01:54.1]} 34. exf6 {[%clk 0:05:16.5]} 34... Rxf6 {[%clk 0:00:47.6]}
35. Qxf6 {[%clk 0:05:16.8]} 35... Qd8 {[%clk 0:00:49.3]} 36. Qe5 {[%clk
0:04:55.9]} 36... Bf7 {[%clk 0:00:46.4]} 37. Qh2 {[%clk 0:04:49.2]} 37... Nh5
{[%clk 0:00:29.6]} 38. gxh5 {[%clk 0:04:47.6]} 38... Qg5+ {[%clk 0:00:31.5]} 39.
Ng3 {[%clk 0:04:48.2]} 39... Kg7 {[%clk 0:00:22.6]} 40. hxg6 {[%clk 0:04:49.2]}
40... Bxg6 {[%clk 0:00:23.7]} 41. Re5 {[%clk 0:04:46.1]} 41... Qd2 {[%clk
0:00:23]} 42. Qh4 {[%clk 0:04:32.3]} 42... Rb2 {[%clk 0:00:24.5]} 43. Qe7+
{[%clk 0:04:27.1]} 43... Bf7 {[%clk 0:00:26.2]} 44. Re2 {[%clk 0:04:23.3]} 44...
Qxc3 {[%clk 0:00:18.8]} 45. Qg5+ {[%clk 0:04:08.3]} 45... Bg6 {[%clk 0:00:03.5]}
46. Rxe6 {[%clk 0:04:08.4]} 46... Qc2 {[%clk 0:00:03.6]} 47. Qf6+ {[%clk
0:04:07.6]} 47... Kg8 {[%clk 0:00:03.9]} 48. Rh8# {[%clk 0:04:06]} 1-0

[Event "Rapid della Domenica"]
[Site "Chess.com"]
[Date "2020.04.19"]
[Round "4"]
[White "sergiodone"]
[Black "Mrtre7"]
[Result "1-0"]
[WhiteElo "1366"]
[BlackElo "1299"]
[TimeControl "720+3"]
[EndTime "7:46:42 PDT"]
[Termination "sergiodone ha vinto per tempo"]

1. e4 {[%clk 0:11:56.6]} 1... c5 {[%clk 0:12:00]} 2. Nf3 {[%clk 0:11:52.6]} 2...
e6 {[%clk 0:12:00]} 3. c3 {[%clk 0:11:51]} 3... d5 {[%clk 0:11:51]} 4. exd5
{[%clk 0:11:51.3]} 4... exd5 {[%clk 0:11:50.2]} 5. d4 {[%clk 0:11:53.2]} 5...
Nf6 {[%clk 0:11:23.9]} 6. Bd3 {[%clk 0:11:53.5]} 6... Bg4 {[%clk 0:11:18.1]} 7.
Bg5 {[%clk 0:11:43.4]} 7... cxd4 {[%clk 0:11:09.6]} 8. cxd4 {[%clk 0:11:43.5]}
8... Bb4+ {[%clk 0:10:44.1]} 9. Nc3 {[%clk 0:11:43.4]} 9... Qb6 {[%clk
0:09:44.1]} 10. O-O {[%clk 0:11:38.2]} 10... O-O {[%clk 0:09:43.2]} 11. Be3
{[%clk 0:11:24.2]} 11... Nc6 {[%clk 0:08:42.3]} 12. Na4 {[%clk 0:11:16.5]} 12...
Qc7 {[%clk 0:08:31.6]} 13. Rc1 {[%clk 0:11:12.5]} 13... Qd8 {[%clk 0:08:11.9]}
14. a3 {[%clk 0:11:12.4]} 14... Bd6 {[%clk 0:07:44.5]} 15. h3 {[%clk 0:11:13.4]}
15... Bh5 {[%clk 0:07:35.6]} 16. Nc5 {[%clk 0:11:12.5]} 16... Bxc5 {[%clk
0:06:26.8]} 17. Rxc5 {[%clk 0:11:11.8]} 17... Ne4 {[%clk 0:06:17.8]} 18. Rc1
{[%clk 0:11:06.9]} 18... Qf6 {[%clk 0:05:43.1]} 19. Be2 {[%clk 0:11:08.2]} 19...
Ne7 {[%clk 0:05:02.3]} 20. Nh2 {[%clk 0:11:07.4]} 20... Bxe2 {[%clk 0:05:00.4]}
21. Qxe2 {[%clk 0:11:08]} 21... Nf5 {[%clk 0:05:00.2]} 22. Ng4 {[%clk
0:11:02.9]} 22... Qb6 {[%clk 0:04:29.5]} 23. Rfd1 {[%clk 0:10:23.9]} 23... Rac8
{[%clk 0:04:17.8]} 24. Ne5 {[%clk 0:10:00.8]} 24... Qd6 {[%clk 0:03:38.7]} 25.
Qg4 {[%clk 0:09:03.4]} 25... Nxe3 {[%clk 0:02:44]} 26. fxe3 {[%clk 0:09:01.5]}
26... f5 {[%clk 0:02:41.8]} 27. Qf4 {[%clk 0:08:48]} 27... Nf6 {[%clk
0:02:06.4]} 28. Rxc8 {[%clk 0:08:45.9]} 28... Rxc8 {[%clk 0:02:05.7]} 29. Qxf5
{[%clk 0:08:46.7]} 29... Rc2 {[%clk 0:02:01.4]} 30. b4 {[%clk 0:08:34.6]} 30...
Ra2 {[%clk 0:01:54.8]} 31. Rc1 {[%clk 0:08:19.7]} 31... g6 {[%clk 0:01:27.4]}
32. Rc8+ {[%clk 0:08:19.3]} 32... Kg7 {[%clk 0:01:29.3]} 33. Qf3 {[%clk
0:07:42.8]} 33... Rxa3 {[%clk 0:01:07]} 34. Ng4 {[%clk 0:07:36.9]} 34... Ra6
{[%clk 0:00:49.7]} 35. Nxf6 {[%clk 0:07:10.4]} 35... Qxf6 {[%clk 0:00:50]} 36.
Rc7+ {[%clk 0:06:45.9]} 36... Kh6 {[%clk 0:00:50.3]} 37. Qxf6 {[%clk 0:06:10.2]}
37... Rxf6 {[%clk 0:00:51.3]} 38. Rxb7 {[%clk 0:06:11.2]} 38... Rb6 {[%clk
0:00:52.9]} 39. Rxa7 {[%clk 0:06:11.3]} 39... Rxb4 {[%clk 0:00:54.8]} 40. Rd7
{[%clk 0:06:12.5]} 40... Rb3 {[%clk 0:00:56.4]} 41. Kf2 {[%clk 0:06:12.3]} 41...
Kg5 {[%clk 0:00:56.3]} 42. Rxd5+ {[%clk 0:06:12.9]} 42... Kf6 {[%clk 0:00:58.3]}
43. Kf3 {[%clk 0:06:14.3]} 43... Ke6 {[%clk 0:01:00.4]} 44. Rc5 {[%clk
0:06:11.7]} 44... Rb1 {[%clk 0:00:59.9]} 45. h4 {[%clk 0:05:15.9]} 45... Rh1
{[%clk 0:00:57.1]} 46. g3 {[%clk 0:05:16.4]} 46... Rd1 {[%clk 0:00:53.1]} 47. h5
{[%clk 0:05:05.4]} 47... Kf6 {[%clk 0:00:37.4]} 48. hxg6 {[%clk 0:05:06]} 48...
hxg6 {[%clk 0:00:39.5]} 49. g4 {[%clk 0:05:01.4]} 49... Rf1+ {[%clk 0:00:38.9]}
50. Ke4 {[%clk 0:05:01.6]} 50... Rg1 {[%clk 0:00:37.9]} 51. Kf4 {[%clk
0:04:56.3]} 51... Rf1+ {[%clk 0:00:37.9]} 52. Kg3 {[%clk 0:04:56.1]} 52... Re1
{[%clk 0:00:39.6]} 53. Re5 {[%clk 0:04:53.6]} 53... Rg1+ {[%clk 0:00:37.2]} 54.
Kf3 {[%clk 0:04:50.5]} 54... Rf1+ {[%clk 0:00:30.2]} 55. Kg2 {[%clk 0:04:43.9]}
55... Rd1 {[%clk 0:00:27.8]} 56. g5+ {[%clk 0:04:43.4]} 56... Kg7 {[%clk
0:00:28.3]} 57. Kf3 {[%clk 0:04:44.4]} 57... Rf1+ {[%clk 0:00:24.8]} 58. Ke4
{[%clk 0:04:45.8]} 58... Kf7 {[%clk 0:00:24.8]} 59. d5 {[%clk 0:04:24.6]} 59...
Rd1 {[%clk 0:00:26.6]} 60. Kf3 {[%clk 0:04:11.8]} 60... Rf1+ {[%clk 0:00:24]}
61. Ke2 {[%clk 0:04:12.7]} 61... Ra1 {[%clk 0:00:13]} 62. e4 {[%clk 0:04:14]}
62... Ra6 {[%clk 0:00:12]} 63. Ke3 {[%clk 0:04:14.2]} 63... Ra3+ {[%clk
0:00:12.6]} 64. Kf4 {[%clk 0:04:04.4]} 64... Ra1 {[%clk 0:00:13.6]} 65. Re6
{[%clk 0:04:05.9]} 65... Rf1+ {[%clk 0:00:14.3]} 66. Ke5 {[%clk 0:04:07]} 66...
Rd1 {[%clk 0:00:11.7]} 67. d6 {[%clk 0:03:55.2]} 67... Ra1 {[%clk 0:00:07.1]}
68. Rf6+ {[%clk 0:03:53.6]} 68... Ke8 {[%clk 0:00:07.9]} 69. Ke6 {[%clk
0:03:51.6]} 69... Ra4 {[%clk 0:00:05.9]} 70. e5 {[%clk 0:03:53.2]} 70... Rg4
{[%clk 0:00:06.9]} 71. Rxg6 {[%clk 0:03:54.5]} 71... Re4 {[%clk 0:00:06.9]} 72.
Kf5 {[%clk 0:03:52.7]} 72... Rd4 {[%clk 0:00:07.2]} 73. Re6+ {[%clk 0:03:51.6]}
73... Kd8 {[%clk 0:00:08.3]} 74. Rh6 {[%clk 0:03:45.4]} 74... Kd7 {[%clk
0:00:09.5]} 75. Rh7+ {[%clk 0:03:44.3]} 75... Kd8 {[%clk 0:00:09.9]} 76. Ke6
{[%clk 0:03:42.1]} 1-0

[Event "Rapid della Domenica"]
[Site "Chess.com"]
[Date "2020.04.19"]
[Round "5"]
[White "Mrtre7"]
[Black "ottovolante"]
[Result "1-0"]
[WhiteElo "1329"]
[BlackElo "1009"]
[TimeControl "720+3"]
[EndTime "7:51:23 PDT"]
[Termination "Mrtre7 ha vinto per scaccomatto"]

1. d4 {[%clk 0:12:02.9]} 1... d5 {[%clk 0:11:57.6]} 2. c4 {[%clk 0:12:04.3]}
2... e6 {[%clk 0:11:50.8]} 3. Nc3 {[%clk 0:11:53.5]} 3... Nf6 {[%clk 0:11:49.9]}
4. cxd5 {[%clk 0:11:54.1]} 4... Nxd5 {[%clk 0:11:49.2]} 5. e4 {[%clk 0:11:53.2]}
5... Bb4 {[%clk 0:11:50.4]} 6. exd5 {[%clk 0:11:35.1]} 6... Bxc3+ {[%clk
0:11:49.4]} 7. bxc3 {[%clk 0:11:35.5]} 7... exd5 {[%clk 0:11:50.9]} 8. Nf3
{[%clk 0:11:27.7]} 8... O-O {[%clk 0:11:51.9]} 9. Bd3 {[%clk 0:11:20.1]} 9...
Re8+ {[%clk 0:11:52.2]} 10. Be3 {[%clk 0:11:21.7]} 10... Qe7 {[%clk 0:11:40.8]}
11. O-O {[%clk 0:11:21.6]} 11... Be6 {[%clk 0:11:37.5]} 12. Re1 {[%clk
0:11:21.4]} 12... Nd7 {[%clk 0:11:38.1]} 13. Qc2 {[%clk 0:11:10.4]} 13... Nf6
{[%clk 0:11:35.7]} 14. Bg5 {[%clk 0:11:07.6]} 14... Qd7 {[%clk 0:11:27.3]} 15.
Bxf6 {[%clk 0:10:59.9]} 15... g6 {[%clk 0:11:26.5]} 16. Qd2 {[%clk 0:10:49.1]}
16... Bf5 {[%clk 0:11:14.9]} 17. Qh6 {[%clk 0:10:44.4]} 17... Rxe1+ {[%clk
0:11:11.8]} 18. Rxe1 {[%clk 0:10:42.8]} 18... Bxd3 {[%clk 0:11:00.5]} 19. Qg7#
{[%clk 0:10:44]} 1-0

[Event "Rapid della Domenica"]
[Site "Chess.com"]
[Date "2020.04.19"]
[Round "5"]
[White "sirmale49"]
[Black "crippo"]
[Result "1-0"]
[WhiteElo "1400"]
[BlackElo "1527"]
[TimeControl "720+3"]
[EndTime "7:52:03 PDT"]
[Termination "sirmale49 ha vinto per abbandono"]

1. f4 {[%clk 0:11:56]} 1... Nf6 {[%clk 0:11:59.7]} 2. Nf3 {[%clk 0:11:57.8]}
2... d6 {[%clk 0:11:59.8]} 3. g3 {[%clk 0:12:00]} 3... Bg4 {[%clk 0:12:00.1]} 4.
e3 {[%clk 0:12:02]} 4... e6 {[%clk 0:12:01.5]} 5. Bg2 {[%clk 0:12:03.2]} 5...
Nc6 {[%clk 0:12:03.2]} 6. h3 {[%clk 0:12:05.3]} 6... Bh5 {[%clk 0:12:01.9]} 7.
g4 {[%clk 0:12:06.7]} 7... Bg6 {[%clk 0:12:03.6]} 8. Nc3 {[%clk 0:11:59.8]} 8...
Ne4 {[%clk 0:11:59.7]} 9. O-O {[%clk 0:11:48]} 9... Be7 {[%clk 0:11:53.1]} 10.
d3 {[%clk 0:11:34.6]} 10... Nxc3 {[%clk 0:11:48.8]} 11. bxc3 {[%clk 0:11:35.4]}
11... O-O {[%clk 0:11:50.6]} 12. Bd2 {[%clk 0:11:33.8]} 12... f5 {[%clk
0:11:52.2]} 13. g5 {[%clk 0:11:33.3]} 13... e5 {[%clk 0:11:52.1]} 14. Rb1 {[%clk
0:11:22.2]} 14... e4 {[%clk 0:11:51.6]} 15. Nh4 {[%clk 0:11:19.1]} 15... Rb8
{[%clk 0:11:37.5]} 16. Nxg6 {[%clk 0:11:09.2]} 16... h6 {[%clk 0:11:38.2]} 17.
h4 {[%clk 0:11:07.3]} 17... Kh7 {[%clk 0:11:34.7]} 18. Nxf8+ {[%clk 0:10:40.4]}
18... Qxf8 {[%clk 0:11:35.2]} 19. Qh5 {[%clk 0:10:37.4]} 19... g6 {[%clk
0:11:34.7]} 20. Qxh6+ {[%clk 0:10:32.7]} 20... Qxh6 {[%clk 0:11:33.4]} 21. gxh6
{[%clk 0:10:34.5]} 21... Bxh4 {[%clk 0:11:35.1]} 22. dxe4 {[%clk 0:10:35.2]}
22... Kxh6 {[%clk 0:11:34.4]} 23. exf5 {[%clk 0:10:34.9]} 23... gxf5 {[%clk
0:11:36.3]} 24. Bxc6 {[%clk 0:10:36.3]} 24... Rg8+ {[%clk 0:11:36.3]} 25. Bg2
{[%clk 0:10:29.1]} 25... b6 {[%clk 0:11:36.2]} 26. Be1 {[%clk 0:10:23.3]} 1-0